lending/lending_fUSD_20240112
["ID","MTS","AMOUNT","RATE_DAILY","PERIOD"]
[311308116,1705059044910,-500.0,0.00022997,2]
[311308117,1705059044921,-500.0,0.00022997,2]
[311308118,1705059044930,-500.0,0.00022997,2]
[311308119,1705059044939,-500.0,0.00022997,2]
[311308120,1705059044949,-500.0,0.00022997,2]
[311308121,1705059044959,-500.0,0.00022997,2]
[311308122,1705059044971,-500.0,0.00022997,2]
[311308123,1705059044982,-500.0,0.00022997,2]
[311308124,1705059044992,-500.0,0.00022997,2]
[311308125,1705059045002,-500.0,0.00022997,2]
[311308126,1705059045013,-609.20446495,0.00022997,2]
[311308127,1705059045024,-500.0,0.00022997,2]
[311308128,1705059045035,-500.0,0.00022997,2]
[311308129,1705059045046,-500.0,0.00022997,2]
[311308130,1705059045057,-500.0,0.00022997,2]
[311308131,1705059045067,-500.0,0.00022997,2]
[311308132,1705059045078,-500.0,0.00022997,2]
[311308133,1705059045089,-500.0,0.00022997,2]
[311308134,1705059045100,-500.0,0.00022997,2]
[311308135,1705059045111,-500.0,0.00022997,2]
[311308136,1705059045121,-500.0,0.00022997,2]
[311308137,1705059045131,-500.0,0.00022997,2]
[311308138,1705059045141,-500.0,0.00022997,2]
[311308139,1705059045151,-500.0,0.00022997,2]
[311308140,1705059045160,-500.0,0.00022997,2]
[311308141,1705059045170,-500.0,0.00022997,2]
[311308142,1705059045179,-500.0,0.00022997,2]
[311308143,1705059045189,-500.0,0.00022997,2]
[311308144,1705059045198,-500.0,0.00022997,2]
[311308145,1705059045207,-500.0,0.00022997,2]
[311308146,1705059045217,-500.0,0.00022997,2]
[311308147,1705059045226,-500.0,0.00022997,2]
[311308148,1705059045236,-500.0,0.00022997,2]
[311308149,1705059045245,-500.0,0.00022997,2]
[311308150,1705059045255,-500.0,0.00022997,2]
[311308151,1705059045264,-500.0,0.00022997,2]
[311308152,1705059045274,-500.0,0.00022997,2]
[311308153,1705059045285,-500.0,0.00022997,2]
[311308154,1705059045294,-500.0,0.00022997,2]
[311308155,1705059045304,-500.0,0.00022997,2]
[311308157,1705059045315,-503.28,0.00022997,2]
[311308159,1705059045325,-500.0,0.00022997,2]
[311308160,1705059045334,-500.0,0.00022997,2]
[311308161,1705059045343,-500.0,0.00022997,2]
[311308162,1705059045353,-500.0,0.00022997,2]
[311308163,1705059045362,-500.0,0.00022997,2]
[311308165,1705059045371,-500.0,0.00022997,2]
[311308167,1705059045381,-500.0,0.00022997,2]
[311308168,1705059045390,-500.0,0.00022997,2]
[311308169,1705059045399,-500.0,0.00022997,2]
[311308170,1705059045408,-1018.77,0.00022997,2]
[311308171,1705059045418,-500.0,0.00022997,2]
[311308172,1705059045427,-500.0,0.00022997,2]
[311308173,1705059045437,-500.0,0.00022997,2]
[311308174,1705059045446,-500.0,0.00022997,2]
[311308175,1705059045455,-500.0,0.00022997,2]
[311308176,1705059045465,-500.0,0.00022997,2]
[311308177,1705059045474,-500.0,0.00022997,2]
[311308178,1705059045485,-3235.39,0.00022997,2]
[311308179,1705059045494,-500.0,0.00022997,2]
[311308180,1705059045506,-500.0,0.00022997,2]
[311308181,1705059045515,-500.0,0.00022997,2]
[311308182,1705059045525,-500.0,0.00022997,2]
[311308183,1705059045535,-500.0,0.00022997,2]
[311308184,1705059045544,-500.0,0.00022997,2]
[311308185,1705059045554,-500.0,0.00022997,2]
[311308186,1705059045563,-500.0,0.00022997,2]
[311308187,1705059045573,-500.0,0.00022997,2]
[311308188,1705059045582,-500.0,0.00022997,2]
[311308189,1705059045592,-500.0,0.00022997,2]
[311308190,1705059045606,-500.0,0.00022997,2]
[311308191,1705059045616,-747.29,0.00022997,2]
[311308192,1705059045626,-500.0,0.00022997,2]
[311308193,1705059045635,-500.0,0.00022997,2]
[311308194,1705059045645,-500.0,0.00022997,2]
[311308195,1705059045656,-500.0,0.00022997,2]
[311308196,1705059045666,-500.0,0.00022997,2]
[311308197,1705059045675,-500.0,0.00022997,2]
[311308198,1705059045684,-500.0,0.00022997,2]
[311308199,1705059045694,-500.0,0.00022997,2]
[311308200,1705059045704,-500.0,0.00022997,2]
[311308201,1705059045713,-500.0,0.00022997,2]
[311308202,1705059045723,-500.0,0.00022997,2]
[311308203,1705059045732,-585.41,0.00022997,2]
[311308204,1705059045741,-500.0,0.00022997,2]
[311308205,1705059045750,-500.0,0.00022997,2]
[311308206,1705059045760,-500.0,0.00022997,2]
[311308207,1705059045770,-500.0,0.00022997,2]
[311308208,1705059045779,-500.0,0.00022997,2]
[311308209,1705059045790,-500.0,0.00022997,2]
[311308210,1705059045800,-1786.04,0.00022997,2]
[311308211,1705059045810,-500.0,0.00022997,2]
[311308212,1705059045822,-748.65,0.00022997,2]
[311308213,1705059045832,-501.35412693,0.00022997,2]
[311308214,1705059045841,-500.0,0.00022997,2]
[311308215,1705059045851,-500.0,0.00022997,2]
[311308216,1705059045860,-500.0,0.00022997,2]
[311308217,1705059045870,-500.0,0.00022997,2]
[311308218,1705059045880,-500.0,0.00022997,2]
[311308219,1705059045889,-500.0,0.00022997,2]
[311308220,1705059045899,-770.32,0.00022997,2]
[311308221,1705059045910,-500.0,0.00022997,2]
[311308222,1705059045919,-500.0,0.00022997,2]
[311308223,1705059045928,-500.0,0.00022997,2]
[311308224,1705059045940,-500.0,0.00022997,2]
[311308225,1705059045949,-500.0,0.00022997,2]
[311308226,1705059045959,-610.01,0.00022997,2]
[311308227,1705059045970,-500.0,0.00022997,2]
[311308228,1705059045979,-500.0,0.00022997,2]
[311308230,1705059045989,-500.0,0.00022997,2]
[311308232,1705059045998,-500.0,0.00022997,2]
[311308234,1705059046007,-500.0,0.00022997,2]
[311308236,1705059046017,-500.0,0.00022997,2]
[311308238,1705059046026,-500.0,0.00022997,2]
[311308240,1705059046036,-500.0,0.00022997,2]
[311308242,1705059046046,-555.82953062,0.00022997,2]
[311308244,1705059046056,-500.0,0.00022997,2]
[311308246,1705059046065,-500.0,0.00022997,2]
[311308248,1705059046074,-500.0,0.00022997,2]
[311308250,1705059046083,-500.0,0.00022997,2]
[311308252,1705059046093,-1239.99,0.00022997,2]
[311308254,1705059046102,-500.0,0.00022997,2]
[311308256,1705059046111,-500.0,0.00022997,2]
[311308259,1705059046121,-2236.46,0.00022997,2]
[311308284,1705059046344,-500.0,0.00022997,2]
[311308287,1705059046354,-520.14,0.00022997,2]
[311308289,1705059046364,-500.0,0.00022997,2]
[311308291,1705059046373,-500.0,0.00022997,2]
[311308292,1705059046383,-500.0,0.00022997,2]
[311308293,1705059046392,-500.0,0.00022997,2]
[311308294,1705059046401,-500.0,0.00022997,2]
[311308295,1705059046410,-500.0,0.00022997,2]
[311308296,1705059046419,-500.0,0.00022997,2]
[311308297,1705059046428,-500.0,0.00022997,2]
[311308298,1705059046437,-500.0,0.00022997,2]
[311308299,1705059046445,-500.0,0.00022997,2]
[311308300,1705059046454,-500.0,0.00022997,2]
[311308301,1705059046463,-500.0,0.00022997,2]
[311308302,1705059046472,-500.0,0.00022997,2]
[311308304,1705059046482,-500.0,0.00022997,2]
[311308306,1705059046492,-500.0,0.00022997,2]
[311308308,1705059046507,-3127.22,0.00022997,5]
[311308310,1705059046516,-500.0,0.00022997,2]
[311308312,1705059046527,-4467.68,0.00022997,2]
[311308314,1705059046539,-500.0,0.00022997,2]
[311308316,1705059046549,-500.0,0.00022997,2]
[311308318,1705059046558,-500.0,0.00022997,2]
[311308320,1705059046568,-500.0,0.00022997,2]
[311308322,1705059046578,-500.0,0.00022997,2]
[311308324,1705059046587,-500.0,0.00022997,2]
[311308326,1705059046597,-500.0,0.00022997,2]
[311308328,1705059046607,-500.0,0.00022997,2]
[311308330,1705059046616,-500.0,0.00022997,2]
[311308332,1705059046626,-500.0,0.00022997,2]
[311308334,1705059046635,-500.0,0.00022997,2]
[311308336,1705059046644,-500.0,0.00022997,2]
[311308338,1705059046654,-500.0,0.00022997,2]
[311308340,1705059046664,-1255.64,0.00022997,2]
[311308342,1705059046676,-500.0,0.00022997,2]
[311308344,1705059046686,-500.0,0.00022997,2]
[311308346,1705059046696,-514.36596431,0.00022997,2]
[311308348,1705059046706,-500.0,0.00022997,2]
[311308350,1705059046716,-500.0,0.00022997,2]
[311308352,1705059046726,-500.0,0.00022997,2]
[311308354,1705059046735,-500.0,0.00022997,2]
[311308356,1705059046745,-500.0,0.00022997,2]
[311308358,1705059046755,-500.0,0.00022997,2]
[311308360,1705059046766,-500.0,0.00022997,2]
[311308362,1705059046775,-1495.59,0.00022997,2]
[311308364,1705059046786,-500.0,0.00022997,2]
[311308366,1705059046794,-500.0,0.00022997,2]
[311308368,1705059046803,-500.0,0.00022997,2]
[311308370,1705059046813,-500.0,0.00022997,2]
[311308372,1705059046823,-500.0,0.00022997,2]
[311308374,1705059046833,-500.0,0.00022997,2]
[311308376,1705059046843,-776.25,0.00022997,2]
[311308378,1705059046853,-500.0,0.00022997,2]
[311308380,1705059046863,-500.0,0.00022997,2]
[311308382,1705059046872,-500.0,0.00022997,2]
[311308384,1705059046882,-500.0,0.00022997,2]
[311308386,1705059046891,-500.0,0.00022997,2]
[311308388,1705059046901,-500.0,0.00022997,2]
[311308389,1705059046911,-164.02285678,0.00022997,2]
[311308392,1705059046922,-4358.23,0.00022997,2]
[311308394,1705059046935,-500.0,0.00022997,2]
[311308396,1705059046945,-500.0,0.00022997,2]
[311308398,1705059046955,-500.0,0.00022997,2]
[311308400,1705059046965,-500.0,0.00022997,2]
[311308402,1705059046974,-500.0,0.00022997,2]
[311308404,1705059046983,-500.0,0.00022997,2]
[311308406,1705059046993,-500.0,0.00022997,2]
[311308408,1705059047002,-718.79,0.00022997,2]
[311308410,1705059047011,-500.0,0.00022997,2]
[311308412,1705059047021,-500.0,0.00022997,2]
[311308414,1705059047030,-500.0,0.00022997,2]
[311308416,1705059047042,-250.0,0.00022997,2]
[311308418,1705059047051,-500.0,0.00022997,2]
[311308420,1705059047062,-500.0,0.00022997,2]
[311308422,1705059047071,-500.0,0.00022997,2]
[311308424,1705059047081,-500.0,0.00022997,2]
[311308427,1705059047094,-559.56,0.00022997,2]
[311308429,1705059047104,-500.0,0.00022997,2]
[311308431,1705059047115,-500.0,0.00022997,2]
[311308433,1705059047126,-500.0,0.00022997,2]
[311308435,1705059047135,-500.0,0.00022997,2]
[311308437,1705059047146,-820.39,0.00022997,2]
[311308438,1705059047158,-500.0,0.00022997,2]
[311308440,1705059047168,-500.0,0.00022997,2]
[311308442,1705059047178,-500.0,0.00022997,2]
[311308444,1705059047187,-500.0,0.00022997,2]
[311308446,1705059047196,-500.0,0.00022997,2]
[311308449,1705059047206,-500.0,0.00022997,2]
[311308451,1705059047216,-500.0,0.00022997,2]
[311308452,1705059047226,-500.0,0.00022997,2]
[311308455,1705059047236,-500.0,0.00022997,2]
[311308457,1705059047246,-675.3,0.00022997,2]
[311308459,1705059047255,-500.0,0.00022997,2]
[311308461,1705059047265,-500.0,0.00022997,2]
[311308463,1705059047274,-500.0,0.00022997,2]
[311308464,1705059047285,-500.0,0.00022997,2]
[311308467,1705059047295,-500.0,0.00022997,2]
[311308469,1705059047305,-500.0,0.00022997,2]
[311308471,1705059047314,-500.0,0.00022997,2]
[311308472,1705059047324,-551.7,0.00022997,2]
[311308475,1705059047333,-500.0,0.00022997,2]
[311308477,1705059047342,-500.0,0.00022997,2]
[311308479,1705059047352,-517.96,0.00022997,2]
[311308481,1705059047363,-500.0,0.00022997,2]
[311308483,1705059047372,-500.0,0.00022997,2]
[311308485,1705059047381,-500.0,0.00022997,2]
[311308487,1705059047391,-588.14,0.00022997,2]
[311308489,1705059047401,-500.0,0.00022997,2]
[311308491,1705059047410,-500.0,0.00022997,2]
[311308493,1705059047421,-500.0,0.00022997,2]
[311308495,1705059047430,-198.87132187,0.00022998,2]
[311308497,1705059047439,-155.0,0.00022998,2]
[311308499,1705059047448,-14775.79997811,0.00022998,2]
[311308501,1705059047457,-16732.40708376,0.00022998,2]
[311308503,1705059047466,-155.33316724,0.00022998,2]
[311308505,1705059047475,-650.75415232,0.00022998,2]
[311308507,1705059047485,-630.07886817,0.00022998,2]
[311308508,1705059047495,-500.0,0.00022998,2]
[311308510,1705059047506,-500.0,0.00022998,2]
[311308511,1705059047516,-500.0,0.00022998,2]
[311308513,1705059047525,-500.0,0.00022998,2]
[311308515,1705059047535,-588.14,0.00022998,2]
[311308517,1705059047545,-588.14,0.00022998,2]
[311308519,1705059047554,-1524.66317032,0.00022999,2]
[311308521,1705059047563,-10932.37692571,0.00022999,2]
[311308523,1705059047574,-620.26,0.00022999,2]
[311308525,1705059047583,-620.26,0.00022999,2]
[311308527,1705059047593,-620.26,0.00022999,2]
[311308529,1705059047603,-620.26,0.00022999,2]
[311308531,1705059047612,-620.26,0.00022999,2]
[311308533,1705059047623,-620.26,0.00022999,2]
[311308535,1705059047633,-620.26,0.00022999,2]
[311308537,1705059047643,-620.26,0.00022999,2]
[311308539,1705059047652,-620.26,0.00022999,2]
[311308541,1705059047662,-620.26,0.00022999,2]
[311308542,1705059047673,-620.26,0.00022999,2]
[311308544,1705059047684,-620.26,0.00022999,2]
[311308546,1705059047695,-620.26,0.00022999,2]
[311308548,1705059047705,-620.26,0.00022999,2]
[311308550,1705059047715,-620.26,0.00022999,2]
[311308552,1705059047725,-620.26,0.00022999,2]
[311308554,1705059047735,-620.26,0.00022999,2]
[311308556,1705059047744,-620.26,0.00022999,2]
[311308558,1705059047754,-620.26,0.00022999,2]
[311308560,1705059047764,-620.26912069,0.00022999,2]
[311308562,1705059047775,-500.0,0.00022999,2]
[311308564,1705059047786,-500.0,0.00022999,2]
[311308566,1705059047797,-500.0,0.00022999,2]
[311308568,1705059047807,-500.0,0.00022999,2]
[311308570,1705059047817,-500.0,0.00022999,2]
[311308572,1705059047827,-500.0,0.00022999,2]
[311308574,1705059047837,-500.0,0.00022999,2]
[311308576,1705059047847,-500.0,0.00022999,2]
[311308578,1705059047858,-500.0,0.00022999,2]
[311308580,1705059047867,-205.89563197,0.00022999,2]
[311308582,1705059047877,-500.0,0.00022999,2]
[311308584,1705059047887,-500.0,0.00022999,2]
[311308586,1705059047897,-500.0,0.00022999,2]
[311308588,1705059047908,-500.0,0.00022999,2]
[311308590,1705059047919,-500.0,0.00022999,2]
[311308592,1705059047930,-500.0,0.00022999,2]
[311308594,1705059047940,-500.0,0.00022999,2]
[311308596,1705059047950,-500.0,0.00022999,2]
[311308598,1705059047961,-355.61518631,0.00022999,2]
[311308600,1705059047971,-150.0,0.00022999,2]
[311308602,1705059047982,-150.0,0.00022999,2]
[311308604,1705059047992,-150.0,0.00022999,2]
[311308606,1705059048002,-150.0,0.00022999,2]
[311308608,1705059048012,-500.0,0.00022999,2]
[311308610,1705059048022,-500.0,0.00022999,2]
[311308612,1705059048033,-500.0,0.00022999,2]
[311308614,1705059048044,-500.0,0.00022999,2]
[311308616,1705059048054,-500.0,0.00022999,2]
[311308618,1705059048065,-337.14459548,0.00022999,2]
[311308620,1705059048074,-588.14,0.00022999,2]
[311308622,1705059048085,-588.14,0.00022999,2]
[311308624,1705059048095,-588.14,0.00022999,2]
[311308626,1705059048105,-588.14,0.00022999,2]
[311308628,1705059048115,-588.14,0.00022999,2]
[311308630,1705059048125,-588.14,0.00022999,2]
[311308632,1705059048135,-588.14,0.00022999,2]
[311308634,1705059048144,-588.14,0.00022999,2]
[311308636,1705059048153,-588.14,0.00022999,2]
[311308638,1705059048162,-588.14,0.00022999,2]
[311308640,1705059048171,-588.14,0.00022999,2]
[311308641,1705059048181,-588.14,0.00022999,2]
[311308643,1705059048191,-588.14,0.00022999,2]
[311308645,1705059048201,-588.14,0.00022999,2]
[311308648,1705059048212,-588.14,0.00022999,2]
[311308649,1705059048222,-588.14,0.00022999,2]
[311308651,1705059048232,-588.14,0.00022999,2]
[311308654,1705059048241,-588.14,0.00022999,2]
[311308655,1705059048251,-588.14,0.00022999,2]
[311308658,1705059048261,-588.14,0.00022999,2]
[311308660,1705059048272,-588.20331235,0.00022999,2]
[311308662,1705059048288,-5066268.66445946,0.00023,2]
[311308663,1705059048298,-932.80587925,0.00023,2]
[311308665,1705059048307,-3119658.34260256,0.00023,2]
[311308671,1705059049060,-917343.72317083,0.00023,2]
[311308672,1705059049071,-460556.75951769,0.00023,2]
[311308673,1705059049108,-46976.51156508,0.00023,2]
[311308674,1705059049180,-302.58199033,0.00023,2]
[311308675,1705059050086,-503.4787228,0.00023,2]
[311308676,1705059050098,-748.68300009,0.00023,2]
[311308677,1705059050121,-25966.79781726,0.00023,2]
[311308678,1705059050164,-1258.4088332,0.00023,2]
[311308679,1705059050526,-3268.49908072,0.00023,2]
[311308680,1705059050539,-463.19576526,0.00023,2]
[311308681,1705059050550,-510.98056953,0.00023,2]
[311308682,1705059050562,-5793.07011594,0.00023,2]
[311308683,1705059050574,-4159.36600708,0.00023,2]
[311308684,1705059051409,-594.79,0.00022899,2]
[311308685,1705059051419,-91.49236887,0.00023,2]
[311308686,1705059051432,-1066.32182804,0.00023,2]
[311308687,1705059051443,-499.63199752,0.00023,2]
[311308688,1705059051455,-2886.21561613,0.00023,2]
[311308689,1705059051467,-3131.86492302,0.00023,2]
[311308690,1705059051479,-2767.93854459,0.00023,2]
[311308691,1705059051491,-4482.3074547,0.00023,2]
[311308692,1705059051502,-320.17033464,0.00023,2]
[311308693,1705059051788,-500.0,0.00022597,2]
[311308694,1705059051799,-438.032615,0.00022597,2]
[311308695,1705059051811,-61.967385,0.00022597,2]
[311308696,1705059051821,-500.0,0.00022871,2]
[311308697,1705059051830,-1500.62885098,0.00023,2]
[311308698,1705059051842,-520.13144372,0.00023,2]
[311308699,1705059051862,-718.62572575,0.00023,2]
[311308700,1705059051874,-3774.53627189,0.00023,2]
[311308701,1705059051885,-4719.65085252,0.00023,2]
[311308702,1705059051906,-500.0,0.00022871,2]
[311308703,1705059051915,-1450.40470994,0.00023,2]
[311308704,1705059051933,-355.87695607,0.00023,2]
[311308705,1705059051944,-4189.55954113,0.00023,2]
[311308706,1705059052703,-321881.22846334,0.00023,2]
[311308707,1705059052713,-2000.0,0.00023,2]
[311308708,1705059052722,-200.0,0.00023,2]
[311308709,1705059052731,-2000.0,0.00023,2]
[311308710,1705059052740,-200.0,0.00023,2]
[311308711,1705059052749,-151.0,0.00023,2]
[311308712,1705059052759,-229.49108878,0.00023,2]
[311308713,1705059052768,-241.08,0.00023,2]
[311308714,1705059052778,-1061.07,0.00023072,2]
[311308715,1705059052789,-1597.51,0.00023072,2]
[311308716,1705059052798,-5584.26,0.00023072,2]
[311308717,1705059052807,-607.02,0.00023072,2]
[311308718,1705059052817,-774.26,0.00023072,2]
[311308719,1705059052826,-500.0,0.00023072,2]
[311308720,1705059052836,-1347.22,0.00023072,2]
[311308721,1705059052846,-743.18,0.00023072,2]
[311308722,1705059052856,-500.0,0.00023072,2]
[311308723,1705059052866,-500.0,0.00023072,2]
[311308724,1705059052875,-675.34,0.00023072,2]
[311308725,1705059052885,-500.0,0.00023072,2]
[311308726,1705059052894,-694.95,0.00023072,2]
[311308727,1705059052903,-5236.66,0.00023072,2]
[311308728,1705059052913,-714.46,0.00023072,2]
[311308729,1705059052922,-659.08,0.00023072,2]
[311308730,1705059052931,-767.0,0.00023072,2]
[311308731,1705059052940,-711.5,0.00023072,2]
[311308732,1705059052950,-500.0,0.00023072,2]
[311308733,1705059052959,-500.0,0.00023072,2]
[311308734,1705059052968,-674.25,0.00023072,2]
[311308735,1705059052978,-1086.97,0.00023072,2]
[311308736,1705059052987,-500.0,0.00023072,2]
[311308737,1705059052996,-1968.19,0.00023072,2]
[311308738,1705059053005,-762.02,0.00023072,2]
[311308739,1705059053014,-500.0,0.00023072,2]
[311308740,1705059053023,-580.47,0.00023072,2]
[311308741,1705059053032,-6400.25,0.00023073,5]
[311308742,1705059053042,-1092.95,0.00023073,2]
[311308743,1705059053052,-4166.12,0.00023073,2]
[311308744,1705059053061,-909.12,0.00023073,2]
[311308745,1705059053070,-500.0,0.00023073,2]
[311308746,1705059053079,-5683.15,0.00023073,2]
[311308747,1705059053089,-2387.23,0.00023073,2]
[311308748,1705059053097,-11339.34663588,0.00023073,2]
[311308749,1705059053110,-2164.51105991,0.00023073,2]
[311308750,1705059053345,-301.74226067,0.00023073,2]
[311308751,1705059053381,-1654.94004354,0.00023073,2]
[311308752,1705059053390,-500.0,0.00023073,2]
[311308753,1705059053399,-675.79,0.00023073,2]
[311308754,1705059053410,-637.6,0.00023073,2]
[311308755,1705059053420,-505.16,0.00023073,2]
[311308756,1705059053432,-539.53,0.00023073,2]
[311308757,1705059053442,-526.06,0.00023073,2]
[311308758,1705059053453,-756.85,0.00023073,2]
[311308759,1705059053462,-500.0,0.00023073,2]
[311308760,1705059053471,-500.0,0.00023073,2]
[311308761,1705059053481,-707.79,0.00023073,2]
[311308762,1705059053490,-500.0,0.00023073,2]
[311308763,1705059053499,-500.0,0.00023073,2]
[311308764,1705059053509,-704.51,0.00023073,2]
[311308765,1705059053519,-2304.03,0.00023073,2]
[311308766,1705059053528,-700.76,0.00023073,2]
[311308767,1705059053539,-6781.92,0.00023073,2]
[311308768,1705059053548,-1001.95,0.00023073,2]
[311308769,1705059053558,-500.0,0.00023073,2]
[311308770,1705059053567,-500.0,0.00023073,2]
[311308771,1705059053577,-1042.95,0.00023073,2]
[311308772,1705059053587,-762.1,0.00023073,2]
[311308773,1705059053597,-1985.57,0.00023073,2]
[311308774,1705059053606,-563.35,0.00023073,2]
[311308775,1705059053616,-960.91,0.00023073,2]
[311308776,1705059053626,-500.0,0.00023073,2]
[311308777,1705059053635,-1235.24,0.00023073,2]
[311308778,1705059053646,-2079.16,0.00023073,2]
[311308779,1705059053658,-1273.21,0.00023073,2]
[311308780,1705059053667,-4334.78,0.00023073,2]
[311308781,1705059053676,-4232.78,0.00023073,2]
[311308782,1705059053685,-156.59,0.00023104,2]
[311308783,1705059053694,-5456.76787986,0.0002313,2]
[311308784,1705059053703,-500.0,0.00023145,2]
[311308785,1705059053712,-500.0,0.00023145,2]
[311308786,1705059053721,-500.0,0.00023145,2]
[311308787,1705059053730,-500.0,0.00023145,2]
[311308788,1705059053738,-500.0,0.00023145,2]
[311308789,1705059053747,-500.0,0.00023145,2]
[311308790,1705059053757,-247.7669031,0.00023145,2]
[311308791,1705059053766,-500.0,0.00023145,2]
[311308792,1705059053776,-331.84018338,0.00023145,2]
[311308793,1705059053785,-500.0,0.00023145,2]
[311308794,1705059053797,-500.0,0.00023145,2]
[311308795,1705059053806,-500.0,0.00023145,2]
[311308796,1705059053815,-500.0,0.00023145,2]
[311308797,1705059053824,-500.0,0.00023145,2]
[311308798,1705059053834,-500.0,0.00023145,2]
[311308799,1705059053844,-500.0,0.00023145,2]
[311308800,1705059053854,-500.0,0.00023145,2]
[311308801,1705059053864,-500.0,0.00023145,2]
[311308802,1705059053873,-500.0,0.00023145,2]
[311308803,1705059053882,-500.0,0.00023145,2]
[311308804,1705059053891,-500.0,0.0002317,2]
[311308805,1705059053901,-500.0,0.0002317,2]
[311308806,1705059053910,-500.0,0.0002317,2]
[311308807,1705059053919,-494.31540139,0.0002317,2]
[311308808,1705059053928,-500.0,0.0002317,2]
[311308809,1705059053937,-500.0,0.0002317,2]
[311308810,1705059053947,-500.0,0.0002317,2]
[311308811,1705059053956,-500.0,0.0002317,2]
[311308812,1705059053965,-500.0,0.0002317,2]
[311308813,1705059053973,-500.0,0.0002317,2]
[311308814,1705059053983,-500.0,0.0002317,2]
[311308815,1705059053991,-500.0,0.0002317,2]
[311308816,1705059054000,-500.0,0.0002317,2]
[311308817,1705059054009,-500.0,0.0002317,2]
[311308818,1705059054019,-500.0,0.0002317,2]
[311308819,1705059054027,-500.0,0.0002317,2]
[311308820,1705059054036,-500.0,0.0002317,2]
[311308821,1705059054050,-500.0,0.0002317,2]
[311308822,1705059054059,-509.0726186,0.0002317,2]
[311308823,1705059054069,-570.24,0.0002317,2]
[311308824,1705059054078,-500.0,0.0002317,2]
[311308825,1705059054087,-500.0,0.0002317,2]
[311308826,1705059054095,-459.73863135,0.0002317,2]
[311308827,1705059054108,-40.26136865,0.0002317,2]
[311308828,1705059054117,-644.07,0.0002317,2]
[311308829,1705059054126,-500.0,0.0002317,2]
[311308830,1705059054135,-500.0,0.0002317,2]
[311308831,1705059054144,-556.32,0.0002317,2]
[311308832,1705059054153,-412.02843304,0.0002317,2]
[311308833,1705059054168,-87.97156696,0.0002317,2]
[311308834,1705059054177,-500.0,0.0002317,2]
[311308835,1705059054187,-158.17318469,0.0002317,2]
[311308836,1705059054199,-341.82681531,0.0002317,2]
[311308837,1705059054208,-500.0,0.0002317,2]
[311308838,1705059054217,-500.0,0.0002317,2]
[311308839,1705059054226,-126.66449645,0.0002317,2]
[311308840,1705059054315,-373.33550355,0.0002317,2]
[311308841,1705059054324,-629.11,0.0002317,2]
[311308842,1705059054334,-500.0,0.0002317,2]
[311308843,1705059054343,-500.0,0.0002317,2]
[311308844,1705059054353,-500.0,0.0002317,2]
[311308845,1705059054362,-500.0,0.0002317,2]
[311308846,1705059054372,-500.0,0.0002317,2]
[311308847,1705059054381,-500.0,0.0002317,2]
[311308848,1705059054393,-500.0,0.0002317,2]